[Event "World Women Teams Championship"]
[Site "Sitges, Spain"]
[Date "2021.09.27"]
[Round "2.12"]
[White "Gomes Mary Ann (IND)"]
[Black "Garcia Martin Marta (SPA)"]
[Result "1/2-1/2"]
[TimeControl "40+10"]
[WhiteElo "2305"]
[BlackElo "2097"]

1. Nf3 {[%clk 00:45:03]} {[%emt 00:00:16]} Nf6 {[%clk 00:45:15]} {[%emt
00:00:06]} 2. g3 {[%clk 00:45:08]} {[%emt 00:00:04]} b6 {[%clk 00:45:13]}
{[%emt 00:00:12]} 3. Bg2 {[%clk 00:45:14]} {[%emt 00:00:04]} Bb7 {[%clk
00:45:22]} {[%emt 00:00:01]} 4. O-O {[%clk 00:45:19]} {[%emt 00:00:05]} g6
{[%clk 00:45:30]} {[%emt 00:00:02]} 5. b3 {[%clk 00:45:27]} {[%emt 00:00:02]}
Bg7 {[%clk 00:45:39]} {[%emt 00:00:01]} 6. Bb2 {[%clk 00:45:34]} {[%emt
00:00:03]} O-O {[%clk 00:45:46]} {[%emt 00:00:03]} 7. c4 {[%clk 00:45:37]}
{[%emt 00:00:08]} c5 {[%clk 00:44:08]} {[%emt 00:01:47]} 8. e3 {[%clk
00:44:56]} {[%emt 00:00:51]} d5 {[%emt 00:03:39]} 9. Qe2 {[%clk 00:44:21]}
{[%emt 00:00:21]} Nc6 {[%clk 00:38:03]} {[%emt 00:03:10]} 10. d3 {[%clk
00:43:54]} {[%emt 00:00:37]} e6 {[%clk 00:37:11]} {[%emt 00:01:02]} 11. Nc3
{[%clk 00:43:35]} {[%emt 00:00:29]} Qe7 {[%clk 00:34:28]} {[%emt 00:02:54]} 12.
Rfd1 {[%clk 00:43:34]} {[%emt 00:00:11]} Rfd8 {[%clk 00:30:36]} {[%emt
00:04:02]} 13. Rac1 {[%clk 00:42:28]} {[%emt 00:01:15]} Rac8 {[%clk 00:30:44]}
{[%emt 00:00:02]} 14. Nb5 {[%clk 00:38:19]} {[%emt 00:04:19]} e5 {[%clk
00:29:57]} {[%emt 00:00:58]} 15. cxd5 {[%clk 00:33:55]} {[%emt 00:04:34]} Nxd5
{[%clk 00:30:04]} {[%emt 00:00:03]} 16. Nc3 {[%clk 00:31:06]} {[%emt 00:02:58]}
Nxc3 {[%clk 00:28:18]} {[%emt 00:01:56]} 17. Bxc3 {[%emt 00:01:42]} Ba6 {[%clk
00:24:17]} {[%emt 00:02:31]} 18. Ne1 {[%clk 00:30:46]} {[%emt 00:00:37]} Rd6
{[%clk 00:22:40]} {[%emt 00:01:48]} 19. Qb2 {[%clk 00:29:14]} {[%emt 00:01:43]}
Rcd8 {[%clk 00:19:46]} {[%emt 00:03:03]} 20. a3 {[%clk 00:28:36]} {[%emt
00:00:49]} Bb5 {[%clk 00:16:25]} {[%emt 00:03:30]} 21. b4 {[%clk 00:24:32]}
{[%emt 00:04:14]} c4 {[%clk 00:12:41]} {[%emt 00:03:55]} 22. Bxc6 {[%clk
00:19:33]} {[%emt 00:05:09]} Bxc6 {[%clk 00:11:55]} {[%emt 00:00:56]} 23. b5
{[%clk 00:11:08]} {[%emt 00:08:34]} Ba8 {[%clk 00:12:03]} {[%emt 00:00:03]} 24.
Bb4 {[%clk 00:07:26]} {[%emt 00:03:52]} Qb7 {[%clk 00:11:41]} {[%emt 00:00:31]}
25. e4 {[%clk 00:07:33]} {[%emt 00:00:02]} Rd4 {[%clk 00:06:13]} {[%emt
00:05:38]} 26. Bc3 {[%clk 00:03:03]} {[%emt 00:04:40]} R4d7 {[%clk 00:03:46]}
{[%emt 00:02:38]} 27. Bxe5 {[%clk 00:01:44]} {[%emt 00:01:30]} Bxe5 {[%clk
00:03:51]} {[%emt 00:00:04]} 28. Qxe5 {[%clk 00:01:52]} {[%emt 00:00:02]} cxd3
{[%clk 00:04:00]} {[%emt 00:00:01]} 29. Rc4 {[%clk 00:00:35]} {[%emt 00:01:27]}
d2 {[%clk 00:00:49]} {[%emt 00:03:21]} 30. Nf3 {[%clk 00:00:43]} {[%emt
00:00:02]} Rd3 {[%clk 00:00:49]} {[%emt 00:00:10]} 31. Ng5 {[%clk 00:00:26]}
{[%emt 00:00:27]} R3d7 {[%clk 00:00:14]} {[%emt 00:00:45]} 32. Qf4 {[%clk
00:00:25]} {[%emt 00:00:11]} h6 {[%clk 00:00:16]} {[%emt 00:00:08]} 33. Nf3
{[%clk 00:00:33]} g5 {[%clk 00:00:24]} {[%emt 00:00:03]} 34. Qf5 {[%clk
00:00:21]} {[%emt 00:00:22]} Rd6 {[%clk 00:00:19]} {[%emt 00:00:16]} 35. h4
{[%clk 00:00:23]} {[%emt 00:00:08]} Qd7 {[%clk 00:00:14]} {[%emt 00:00:15]} 36.
Qxd7 {[%clk 00:00:20]} {[%emt 00:00:13]} R6xd7 {[%clk 00:00:22]} {[%emt
00:00:01]} 37. Rxd2 {[%clk 00:00:23]} {[%emt 00:00:07]} Rxd2 38. Nxd2 {[%clk
00:00:32]} Rxd2 {[%clk 00:00:20]} {[%emt 00:00:09]} 39. Rc8+ {[%clk 00:00:40]}
{[%emt 00:00:02]} Kg7 {[%clk 00:00:29]} 40. Rxa8 {[%clk 00:00:47]} {[%emt
00:00:03]} gxh4 {[%clk 00:00:23]} {[%emt 00:00:16]} 41. Rxa7 {[%clk 00:00:43]}
{[%emt 00:00:15]} hxg3 {[%clk 00:00:23]} {[%emt 00:00:10]} 42. fxg3 {[%clk
00:00:52]} {[%emt 00:00:01]} Rb2 {[%clk 00:00:18]} {[%emt 00:00:15]} 43. a4
{[%clk 00:00:58]} {[%emt 00:00:05]} Rb4 {[%clk 00:00:13]} {[%emt 00:00:15]} 44.
Kf2 {[%clk 00:01:05]} {[%emt 00:00:02]} Rxe4 {[%clk 00:00:21]} {[%emt
00:00:02]} 45. Ra6 {[%clk 00:00:40]} {[%emt 00:00:34]} f5 {[%clk 00:00:14]}
{[%emt 00:00:17]} 46. Kf3 {[%clk 00:00:40]} {[%emt 00:00:11]} h5 {[%clk
00:00:21]} {[%emt 00:00:03]} 47. Rxb6 {[%clk 00:00:33]} {[%emt 00:00:16]} Rxa4
{[%clk 00:00:30]} {[%emt 00:00:01]} 48. Rb8 {[%clk 00:00:39]} {[%emt 00:00:03]}
h4 {[%clk 00:00:14]} {[%emt 00:00:27]} 49. gxh4 {[%clk 00:00:16]} {[%emt
00:00:33]} Rxh4 {[%clk 00:00:23]} {[%emt 00:00:02]} 50. b6 {[%clk 00:00:25]}
{[%emt 00:00:01]} Rb4 {[%clk 00:00:30]} {[%emt 00:00:02]} 51. b7 {[%clk
00:00:19]} {[%emt 00:00:16]} Kh7 {[%clk 00:00:15]} {[%emt 00:00:25]} 52. Ke3
{[%clk 00:00:26]} {[%emt 00:00:04]} Kg7 {[%clk 00:00:16]} {[%emt 00:00:09]} 53.
Kf3 {[%clk 00:00:30]} {[%emt 00:00:05]} Kh7 {[%clk 00:00:24]} {[%emt 00:00:01]}
54. Ke3 {[%clk 00:00:39]} Kg7 {[%clk 00:00:34]} 55. Kf3 {[%clk 00:00:47]}
{[%emt 00:00:03]} Kh7 {[%emt 00:00:01]} 56. Ke4 {[%emt 00:00:07]} 1/2-1/2

[ePGN "0.1;DGT LiveChess/2.2.5"]

[Event "World Women Teams  Championship"]
[Site "Sitges, Spain"]
[Date "2021.09.27"]
[Round "2.1"]
[White "Dzagnidze, Nana"]
[Black "Abdumalik, Zhansaya"]
[Result "0-1"]
[TimeControl "40+10"]
[WhiteElo "2455"]
[BlackElo "2444"]

1. d4 {[%emt 00:47:27]} Nf6 {[%emt 00:00:05]} 2. c4 {[%emt 00:00:03]} g6 {[%emt
00:00:02]} 3. g3 {[%emt 00:00:05]} Bg7 {[%emt 00:00:50]} 4. Bg2 {[%emt
00:00:09]} d5 {[%emt 00:01:09]} 5. cxd5 {[%emt 00:00:55]} Nxd5 {[%emt
00:00:03]} 6. Nf3 {[%emt 00:00:05]} O-O {[%emt 00:00:04]} 7. O-O {[%emt
00:00:07]} Nb6 {[%emt 00:00:06]} 8. Nc3 {[%emt 00:00:47]} Nc6 {[%emt 00:00:13]}
9. e3 {[%emt 00:00:04]} Re8 {[%emt 00:02:41]} 10. h3 {[%emt 00:00:11]} e5
{[%emt 00:00:45]} 11. d5 {[%emt 00:00:03]} Na5 {[%emt 00:01:12]} 12. Qc2 {[%emt
00:00:05]} c6 {[%emt 00:00:50]} 13. b4 {[%emt 00:00:41]} Nac4 {[%emt 00:01:01]}
14. dxc6 {[%emt 00:00:47]} bxc6 {[%emt 00:02:55]} 15. Rd1 {[%emt 00:00:05]} Qe7
{[%emt 00:00:56]} 16. Nd2 {[%emt 00:00:03]} Bf5 {[%emt 00:01:58]} 17. Nce4
{[%emt 00:00:03]} Rad8 {[%emt 00:03:00]} 18. Rb1 {[%emt 00:10:49]} h5 {[%emt
00:00:45]} 19. a4 {[%emt 00:04:28]} Nxd2 {[%emt 00:01:13]} 20. Bxd2 {[%emt
00:00:39]} Qe6 {[%emt 00:01:40]} 21. Rbc1 {[%emt 00:03:56]} Nd5 {[%emt
00:01:26]} 22. Be1 {[%emt 00:01:47]} Bf8 {[%emt 00:03:58]} 23. Qc4 {[%emt
00:02:09]} Be7 {[%emt 00:02:24]} 24. Nc5 {[%emt 00:07:41]} Bxc5 {[%emt
00:01:40]} 25. Qxc5 {[%emt 00:00:01]} Bxh3 {[%emt 00:00:49]} 26. Bxh3 {[%emt
00:00:01]} Qxh3 {[%emt 00:00:01]} 27. Qxc6 {[%emt 00:00:02]} Kg7 {[%emt
00:01:05]} 28. Qc4 {[%emt 00:04:11]} Nf6 {[%emt 00:01:18]} 29. Qf1 {[%emt
00:01:45]} Qf5 {[%emt 00:00:20]} 30. Qe2 {[%emt 00:00:33]} Rxd1 {[%emt
00:01:33]} 31. Qxd1 {[%emt 00:00:52]} h4 {[%emt 00:01:32]} 32. gxh4 {[%emt
00:00:20]} Qe4 {[%emt 00:00:54]} 33. Rc7 {[%emt 00:01:08]} Rh8 {[%emt
00:01:45]} 34. Qb3 {[%emt 00:00:28]} Nd5 {[%emt 00:00:30]} 35. Qc4 {[%emt
00:00:36]} Qf3 {[%emt 00:00:38]} 36. Rc6 {[%emt 00:04:46]} Nf4 {[%emt
00:00:46]} 37. exf4 {[%emt 00:00:16]} Rxh4 {[%emt 00:00:03]} 0-1

[Event "World Women Teams  Championship"]
[Site "Sitges, Spain"]
[Date "2021.09.27"]
[Round "2.2"]
[White "Saduakassova, Dinara"]
[Black "Batsiashvili, Nino"]
[Result "1/2-1/2"]
[TimeControl "40+10"]
[WhiteElo "2429"]
[BlackElo "2371"]

1. c4 {[%emt 00:01:18]} e6 {[%clk 00:45:16]} 2. Nf3 {[%clk 00:45:17]} {[%emt
00:00:03]} d5 {[%emt 00:00:12]} 3. g3 {[%clk 00:43:22]} {[%emt 00:00:12]} dxc4
4. Qa4+ {[%emt 00:03:22]} Bd7 {[%clk 00:43:53]} {[%emt 00:00:23]} 5. Qxc4
{[%clk 00:42:35]} {[%emt 00:00:14]} c5 6. Bg2 {[%emt 00:01:42]} Nc6 {[%emt
00:01:21]} 7. O-O {[%clk 00:40:19]} {[%emt 00:00:51]} Rc8 {[%emt 00:01:33]} 8.
Nc3 {[%clk 00:37:35]} {[%emt 00:00:24]} Nf6 9. d4 {[%clk 00:37:30]} {[%emt
00:03:58]} cxd4 10. Nxd4 {[%emt 00:01:22]} Nxd4 {[%clk 00:40:16]} {[%emt
00:00:05]} 11. Qxd4 {[%emt 00:00:12]} Bc5 {[%emt 00:02:00]} 12. Qd3 {[%emt
00:01:54]} Bc6 {[%emt 00:03:05]} 13. Qxd8+ {[%clk 00:32:54]} {[%emt 00:00:04]}
Kxd8 {[%emt 00:00:23]} 14. Bxc6 {[%clk 00:32:41]} {[%emt 00:00:02]} Rxc6 {[%clk
00:37:40]} {[%emt 00:00:15]} 15. Bg5 h6 {[%emt 00:01:05]} 16. Bxf6+ {[%clk
00:32:20]} {[%emt 00:00:36]} gxf6 {[%clk 00:37:48]} {[%emt 00:00:01]} 17. Ne4
{[%clk 00:32:19]} {[%emt 00:00:11]} Ke7 {[%emt 00:00:27]} 18. Rfd1 {[%clk
00:30:55]} {[%emt 00:01:26]} Rhc8 {[%clk 00:36:12]} {[%emt 00:06:32]} 1/2-1/2

[Event "World Women Teams  Championship"]
[Site "Sitges, Spain"]
[Date "2021.09.27"]
[Round "2.3"]
[White "Arabidze, Meri"]
[Black "Kamalidenova, Meruert"]
[Result "1/2-1/2"]
[TimeControl "40+10"]
[WhiteElo "2434"]
[BlackElo "1984"]

1. Nf3 {[%clk 00:45:14]} {[%emt 00:00:06]} Nf6 {[%clk 00:45:13]} {[%emt
00:00:08]} 2. g3 {[%clk 00:45:22]} {[%emt 00:00:02]} g6 {[%clk 00:45:16]}
{[%emt 00:00:06]} 3. b3 {[%clk 00:45:28]} {[%emt 00:00:05]} Bg7 {[%clk
00:45:19]} {[%emt 00:00:06]} 4. Bb2 {[%clk 00:45:36]} {[%emt 00:00:02]} O-O
{[%clk 00:45:15]} {[%emt 00:00:14]} 5. Bg2 {[%clk 00:45:43]} {[%emt 00:00:03]}
d5 {[%clk 00:44:26]} {[%emt 00:00:59]} 6. O-O {[%clk 00:45:07]} {[%emt
00:00:47]} c6 {[%clk 00:43:05]} {[%emt 00:01:30]} 7. c4 {[%clk 00:45:01]}
{[%emt 00:00:17]} Nbd7 {[%clk 00:41:48]} {[%emt 00:01:27]} 8. d3 {[%clk
00:43:44]} {[%emt 00:01:28]} Re8 {[%clk 00:41:16]} {[%emt 00:00:41]} 9. Nc3
{[%clk 00:41:12]} {[%emt 00:02:42]} e5 {[%clk 00:40:28]} {[%emt 00:00:58]} 10.
cxd5 {[%clk 00:39:22]} {[%emt 00:02:01]} Nxd5 {[%clk 00:38:21]} {[%emt
00:02:17]} 11. Rc1 {[%clk 00:39:00]} {[%emt 00:00:32]} Nf8 {[%clk 00:37:37]}
{[%emt 00:00:53]} 12. a3 {[%clk 00:37:28]} {[%emt 00:01:42]} Bg4 {[%clk
00:34:35]} {[%emt 00:03:12]} 13. h3 {[%clk 00:36:27]} {[%emt 00:01:12]} Bxf3
{[%clk 00:34:09]} {[%emt 00:00:36]} 14. Bxf3 {[%clk 00:36:33]} {[%emt
00:00:04]} Nxc3 {[%clk 00:34:08]} {[%emt 00:00:10]} 15. Bxc3 {[%clk 00:36:28]}
{[%emt 00:00:16]} Ne6 {[%clk 00:33:47]} {[%emt 00:00:31]} 16. b4 {[%clk
00:34:35]} {[%emt 00:02:03]} Qd7 {[%clk 00:32:39]} {[%emt 00:01:17]} 17. Bg2
{[%clk 00:34:25]} {[%emt 00:00:20]} h5 {[%clk 00:31:42]} {[%emt 00:01:07]} 18.
h4 {[%emt 00:02:07]} Rad8 {[%clk 00:29:07]} {[%emt 00:02:45]} 19. a4 {[%clk
00:29:51]} {[%emt 00:02:49]} a6 {[%clk 00:28:30]} {[%emt 00:00:47]} 20. Re1
{[%clk 00:28:38]} {[%emt 00:01:22]} Nc7 {[%clk 00:27:04]} {[%emt 00:01:36]} 21.
Qb3 {[%clk 00:27:34]} {[%emt 00:01:14]} Nd5 {[%clk 00:22:44]} {[%emt 00:04:30]}
22. Bd2 {[%clk 00:27:37]} {[%emt 00:00:07]} Bf8 {[%clk 00:20:53]} {[%emt
00:02:02]} 23. Rb1 {[%clk 00:26:53]} {[%emt 00:00:54]} Kg7 {[%clk 00:19:44]}
{[%emt 00:01:20]} 24. Rec1 {[%clk 00:25:44]} {[%emt 00:01:19]} Nf6 {[%clk
00:17:07]} {[%emt 00:02:47]} 25. b5 {[%clk 00:22:10]} {[%emt 00:03:44]} axb5
{[%clk 00:16:23]} {[%emt 00:00:54]} 26. axb5 {[%clk 00:22:19]} {[%emt
00:00:02]} c5 {[%clk 00:15:13]} {[%emt 00:01:20]} 27. b6 {[%clk 00:20:28]}
{[%emt 00:02:00]} Nd5 {[%clk 00:14:17]} {[%emt 00:01:05]} 28. Qb5 {[%clk
00:18:08]} {[%emt 00:02:31]} f5 {[%clk 00:11:43]} {[%emt 00:02:43]} 29. Bg5
{[%clk 00:11:15]} {[%emt 00:07:02]} Qxb5 {[%clk 00:10:40]} {[%emt 00:01:14]} 30.
Rxb5 {[%clk 00:11:24]} {[%emt 00:00:01]} Rd7 {[%clk 00:10:46]} {[%emt
00:00:04]} 31. Ra1 {[%clk 00:08:55]} {[%emt 00:02:39]} Nc3 {[%clk 00:08:02]}
{[%emt 00:02:54]} 32. Rb2 {[%clk 00:09:05]} e4 {[%clk 00:07:34]} {[%emt
00:00:38]} 33. Ra7 {[%clk 00:07:41]} {[%emt 00:01:34]} Bd6 {[%clk 00:05:16]}
{[%emt 00:02:29]} 34. dxe4 {[%clk 00:04:26]} {[%emt 00:03:24]} Nxe4 {[%clk
00:04:53]} {[%emt 00:00:33]} 35. Be3 {[%clk 00:04:17]} {[%emt 00:00:19]} Bb8
{[%clk 00:04:12]} {[%emt 00:00:51]} 36. Bxe4 {[%clk 00:02:53]} {[%emt
00:01:34]} Rxe4 {[%clk 00:02:37]} {[%emt 00:01:45]} 37. Bxc5 {[%clk 00:02:44]}
{[%emt 00:00:19]} Bxa7 {[%clk 00:01:23]} {[%emt 00:01:25]} 38. bxa7 {[%clk
00:02:53]} {[%emt 00:00:01]} Ra4 {[%clk 00:00:53]} {[%emt 00:00:39]} 39. e3
{[%clk 00:02:54]} {[%emt 00:00:09]} Kf7 {[%clk 00:00:42]} {[%emt 00:00:21]} 40.
Bd4 {[%clk 00:02:22]} {[%emt 00:00:42]} Ke7 {[%emt 00:01:03]} 41. Kg2 {[%clk
00:01:46]} {[%emt 00:00:13]} b5 {[%clk 00:00:15]} {[%emt 00:00:18]} 42. Rxb5
{[%clk 00:01:18]} {[%emt 00:00:37]} Rdxa7 {[%clk 00:00:24]} {[%emt 00:00:02]}
43. Bxa7 {[%clk 00:01:17]} {[%emt 00:00:11]} Rxa7 {[%clk 00:00:33]} {[%emt
00:00:01]} 44. Rb6 {[%clk 00:01:10]} {[%emt 00:00:17]} Kf7 {[%clk 00:00:41]} 45.
Kf3 {[%clk 00:01:19]} {[%emt 00:00:01]} Ra4 {[%clk 00:00:49]} {[%emt 00:00:02]}
46. Rd6 {[%clk 00:01:10]} {[%emt 00:00:18]} Rb4 {[%clk 00:00:57]} {[%emt
00:00:02]} 47. Ke2 {[%clk 00:01:04]} {[%emt 00:00:16]} Ra4 {[%clk 00:01:02]}
{[%emt 00:00:06]} 48. Rd4 {[%clk 00:00:58]} {[%emt 00:00:15]} Ra2+ {[%clk
00:01:09]} {[%emt 00:00:03]} 49. Rd2 {[%clk 00:01:07]} {[%emt 00:00:01]} Ra4
{[%clk 00:01:17]} {[%emt 00:00:02]} 50. Rc2 {[%clk 00:01:01]} {[%emt 00:00:16]}
Rb4 {[%clk 00:01:24]} {[%emt 00:00:04]} 51. Rc7+ {[%clk 00:01:04]} {[%emt
00:00:07]} Kf6 {[%clk 00:01:32]} 52. Rc6+ {[%clk 00:01:13]} Kf7 {[%clk
00:01:41]} {[%emt 00:00:01]} 53. Kd3 {[%clk 00:01:02]} {[%emt 00:00:21]} Ra4
{[%clk 00:01:42]} {[%emt 00:00:10]} 54. Rc7+ {[%clk 00:00:26]} {[%emt
00:00:47]} Kf6 {[%clk 00:01:51]} 55. Rc6+ {[%clk 00:00:35]} Kf7 {[%clk
00:02:00]} 56. Rc4 {[%clk 00:00:44]} {[%emt 00:00:01]} Ra2 {[%clk 00:02:07]}
{[%emt 00:00:03]} 57. Rc2 {[%clk 00:00:53]} Ra4 {[%clk 00:02:15]} {[%emt
00:00:02]} 58. f3 {[%clk 00:00:18]} {[%emt 00:00:45]} Ra1 {[%clk 00:01:51]}
{[%emt 00:00:33]} 59. Ke2 {[%clk 00:00:16]} {[%emt 00:00:12]} Ra4 {[%clk
00:01:41]} {[%emt 00:00:21]} 60. Rb2 {[%clk 00:00:19]} {[%emt 00:00:07]} Kf6
{[%clk 00:01:49]} {[%emt 00:00:01]} 61. Rb6+ {[%clk 00:00:26]} {[%emt
00:00:03]} Kf7 {[%clk 00:01:58]} {[%emt 00:00:01]} 62. Rd6 {[%clk 00:00:30]}
{[%emt 00:00:06]} Ra2+ {[%clk 00:02:00]} {[%emt 00:00:08]} 63. Rd2 {[%clk
00:00:39]} Ra4 {[%clk 00:02:04]} {[%emt 00:00:06]} 64. Kf2 {[%clk 00:00:45]}
{[%emt 00:00:04]} Rb4 {[%clk 00:02:09]} {[%emt 00:00:05]} 65. Ra2 {[%clk
00:00:42]} {[%emt 00:00:13]} Kf6 {[%clk 00:02:16]} {[%emt 00:00:03]} 66. Ke2
{[%clk 00:00:44]} {[%emt 00:00:08]} Kf7 {[%clk 00:02:15]} {[%emt 00:00:11]} 67.
Kd3 {[%clk 00:00:26]} {[%emt 00:00:28]} Rb1 {[%clk 00:02:18]} {[%emt 00:00:07]}
68. Ra7+ {[%clk 00:00:21]} {[%emt 00:00:15]} Kf6 {[%clk 00:02:27]} {[%emt
00:00:02]} 69. Ra6+ {[%clk 00:00:30]} Kf7 {[%clk 00:02:35]} {[%emt 00:00:01]}
70. Kd4 {[%clk 00:00:24]} {[%emt 00:00:16]} Rf1 {[%clk 00:02:16]} {[%emt
00:00:28]} 71. f4 {[%clk 00:00:19]} {[%emt 00:00:16]} Rf3 {[%clk 00:02:12]}
{[%emt 00:00:14]} 72. Ra3 {[%clk 00:00:27]} {[%emt 00:00:02]} Rxg3 {[%clk
00:01:33]} {[%emt 00:00:49]} 73. Ke5 {[%clk 00:00:36]} {[%emt 00:00:02]} Kg7
{[%clk 00:00:32]} {[%emt 00:01:10]} 74. Ke6 {[%clk 00:00:45]} {[%emt 00:00:01]}
Rg1 {[%clk 00:00:28]} {[%emt 00:00:14]} 75. Ra7+ {[%clk 00:00:40]} {[%emt
00:00:16]} Kh6 {[%clk 00:00:26]} {[%emt 00:00:12]} 76. Kf7 {[%clk 00:00:27]}
{[%emt 00:00:22]} Rb1 {[%clk 00:00:32]} {[%emt 00:00:03]} 77. Re7 {[%clk
00:00:24]} {[%emt 00:00:14]} Rb8 {[%clk 00:00:30]} {[%emt 00:00:12]} 78. Re6
{[%clk 00:00:16]} {[%emt 00:00:19]} Kh7 {[%clk 00:00:28]} {[%emt 00:00:12]} 79.
Kf6 {[%clk 00:00:22]} {[%emt 00:00:04]} Rb1 {[%clk 00:00:25]} {[%emt 00:00:13]}
80. Re7+ {[%clk 00:00:21]} {[%emt 00:00:11]} Kh6 {[%clk 00:00:31]} {[%emt
00:00:05]} 81. Re8 {[%clk 00:00:25]} {[%emt 00:00:05]} Kh7 {[%clk 00:00:39]}
{[%emt 00:00:03]} 82. Kf7 {[%clk 00:00:27]} {[%emt 00:00:07]} Rb6 {[%clk
00:00:39]} {[%emt 00:00:10]} 83. Re6 {[%clk 00:00:23]} {[%emt 00:00:14]} Rb7+
{[%clk 00:00:48]} {[%emt 00:00:02]} 84. Re7 {[%clk 00:00:28]} {[%emt 00:00:05]}
Rb8 {[%clk 00:00:42]} {[%emt 00:00:15]} 85. Rd7 {[%clk 00:00:19]} {[%emt
00:00:20]} Ra8 {[%clk 00:00:40]} {[%emt 00:00:12]} 86. Kf6+ {[%clk 00:00:19]}
{[%emt 00:00:10]} Kh6 {[%clk 00:00:47]} {[%emt 00:00:02]} 87. Rd6 {[%clk
00:00:17]} {[%emt 00:00:12]} Rf8+ {[%clk 00:00:29]} {[%emt 00:00:27]} 88. Ke7
{[%clk 00:00:18]} {[%emt 00:00:09]} Ra8 {[%clk 00:00:38]} {[%emt 00:00:01]} 89.
Kf7 {[%clk 00:00:20]} {[%emt 00:00:08]} Ra7+ {[%clk 00:00:32]} {[%emt
00:00:16]} 90. Kf6 {[%clk 00:00:24]} {[%emt 00:00:06]} Rb7 {[%clk 00:00:38]}
{[%emt 00:00:05]} 91. Re6 {[%clk 00:00:28]} {[%emt 00:00:06]} Ra7 {[%clk
00:00:39]} {[%emt 00:00:08]} 92. Re7 {[%clk 00:00:30]} {[%emt 00:00:08]} Ra6+
{[%clk 00:00:44]} {[%emt 00:00:06]} 93. Kf7 {[%clk 00:00:39]} Ra8 {[%clk
00:00:53]} {[%emt 00:00:02]} 94. Re8 {[%clk 00:00:40]} {[%emt 00:00:08]} Ra7+
{[%clk 00:01:02]} {[%emt 00:00:02]} 95. Kf8 {[%clk 00:00:23]} {[%emt 00:00:25]}
Rb7 {[%clk 00:01:05]} {[%emt 00:00:08]} 96. Re6 {[%clk 00:00:20]} {[%emt
00:00:14]} Ra7 {[%clk 00:01:09]} {[%emt 00:00:06]} 97. e4 {[%clk 00:00:16]}
{[%emt 00:00:14]} Ra8+ {[%clk 00:00:51]} {[%emt 00:00:27]} 98. Kf7 {[%clk
00:00:24]} {[%emt 00:00:02]} Ra7+ {[%clk 00:01:00]} {[%emt 00:00:02]} 99. Kf6
{[%clk 00:00:17]} {[%emt 00:00:16]} fxe4 {[%clk 00:01:04]} {[%emt 00:00:06]}
100. Rxe4 {[%clk 00:00:21]} {[%emt 00:00:06]} Ra5 {[%clk 00:01:10]} {[%emt
00:00:05]} 101. Re5 {[%clk 00:00:16]} {[%emt 00:00:15]} 1/2-1/2